bitfinex-derivatives/quotes_BTCF0:USTF0_20250602
["timestamp","ask_amount","ask_price","bid_price","bid_amount"]
[1748875801055,1.59415718,104170.0,104160.0,0.51744841]
[1748875801461,1.59415718,104170.0,104160.0,0.03660841]
[1748875801665,1.59415718,104170.0,104160.0,0.51764841]
[1748875801960,1.36789795,104170.0,104160.0,0.51764841]
[1748875802160,1.59415718,104170.0,104160.0,0.51764841]
[1748875802359,1.47462986,104170.0,104160.0,0.51764841]
[1748875803156,1.47462986,104170.0,104160.0,0.51744841]
[1748875803785,1.53454362,104170.0,104160.0,0.51764841]
[1748875804152,1.64453936,104170.0,104160.0,0.03660841]
[1748875804353,1.84083811,104170.0,104160.0,0.51764841]
[1748875804558,1.67450313,104170.0,104160.0,0.51744841]
[1748875804758,1.67450313,104170.0,104160.0,0.03660841]
[1748875804960,1.67450313,104170.0,104160.0,0.51764841]
[1748875805159,1.73561412,104170.0,104160.0,0.51764841]
[1748875805462,1.62561412,104170.0,104160.0,0.0002]
[1748875805659,1.83161412,104170.0,104160.0,0.48548954]
[1748875806571,1.83161412,104170.0,104160.0,0.00424954]
[1748875806798,1.83161412,104170.0,104160.0,0.00444954]
[1748875807862,1.89153313,104170.0,104160.0,0.00444954]
[1748875808882,0.1919454,104160.0,104150.0,0.03640841]
[1748875809113,0.1919638,104150.0,104140.0,0.00225628]
[1748875809452,1.07113636,104150.0,104140.0,0.48329628]
[1748875809899,1.59113636,104150.0,104140.0,0.00225628]
[1748875809903,1.44130977,104150.0,104140.0,0.00245627]
[1748875810175,1.6510263,104150.0,104140.0,0.00245627]
[1748875810179,1.6530263,104150.0,104140.0,0.00225627]
[1748875810505,1.59305673,104150.0,104140.0,0.00245627]
[1748875810867,1.44330977,104150.0,104140.0,0.00245627]
[1748875811269,1.59499524,104150.0,104140.0,0.00245627]
[1748875812106,1.59499524,104150.0,104120.0,0.0692]
[1748875812107,0.1920007,104130.0,104120.0,0.0692]
[1748875812272,1.21995692,104130.0,104120.0,0.2612191]
[1748875812570,1.36225692,104130.0,104120.0,0.2612191]
[1748875812878,1.36225692,104130.0,104120.0,0.7422591]
[1748875813070,1.36225692,104130.0,104120.0,0.55024]
[1748875813464,1.36225692,104130.0,104120.0,0.0722]
[1748875813676,1.36225692,104130.0,104120.0,0.55328]
[1748875814000,1.36225692,104130.0,104120.0,0.55528]
[1748875814282,1.36225692,104130.0,104120.0,0.48704]
[1748875814608,1.13481095,104130.0,104120.0,0.8187591]
[1748875814887,0.63171095,104130.0,104120.0,0.8187591]
[1748875815072,0.63171095,104130.0,104120.0,0.9431991]
[1748875815390,0.63171095,104130.0,104120.0,0.75118]
[1748875815775,0.5120007,104130.0,104120.0,0.1457]
[1748875815970,0.70551095,104130.0,104120.0,0.75118]
[1748875816166,0.5858007,104130.0,104120.0,0.75118]
[1748875816576,0.81324667,104130.0,104120.0,0.27014]
[1748875816783,1.00345692,104130.0,104120.0,0.1457]
[1748875816975,1.00345692,104130.0,104120.0,0.75118]
[1748875817369,0.6563007,104130.0,104120.0,0.75118]
[1748875818984,0.6563007,104130.0,104120.0,0.1457]
[1748875819187,0.6563007,104130.0,104120.0,0.75118]
[1748875820597,1.24454667,104130.0,104120.0,0.75118]
[1748875820810,1.24454667,104130.0,104120.0,0.1457]
[1748875820978,1.24454667,104130.0,104120.0,0.75118]
[1748875821596,1.24454667,104130.0,104120.0,0.75114]
[1748875821886,1.24454667,104130.0,104120.0,0.75538954]
[1748875822574,1.24454667,104130.0,104120.0,0.27438954]
[1748875822798,0.32,104130.0,104120.0,1.30820874]
[1748875823024,0.00014373,104140.0,104130.0,0.1920007]
[1748875823296,0.00014373,104140.0,104130.0,0.98884667]
[1748875823744,0.00014373,104140.0,104130.0,1.3834675]
[1748875823900,0.00014373,104140.0,104130.0,1.4334675]
[1748875824268,0.4942,104160.0,104150.0,0.1919637]
[1748875824485,0.4942,104160.0,104150.0,1.1582037]
[1748875824486,0.5339453,104160.0,104150.0,1.1582037]
[1748875824691,0.342,104160.0,104150.0,1.2985037]
[1748875825054,1.32219127,104160.0,104150.0,0.74574]
[1748875825200,1.45869127,104160.0,104150.0,0.9379037]
[1748875825390,1.45869127,104160.0,104150.0,0.74594]
[1748875825583,1.45869127,104160.0,104150.0,0.7459]
[1748875825790,1.46169127,104160.0,104150.0,0.7459]
[1748875825982,1.46469127,104160.0,104150.0,0.7459]
[1748875827094,1.46469127,104160.0,104150.0,0.8145]
[1748875827285,1.46469127,104160.0,104150.0,0.34293837]
[1748875827499,1.46469127,104160.0,104150.0,0.82385837]
[1748875828799,1.46469127,104160.0,104150.0,0.21849837]
[1748875828991,1.46469127,104160.0,104150.0,0.82381837]
[1748875829492,1.46469127,104160.0,104150.0,0.21849837]
[1748875829797,1.46469127,104160.0,104150.0,0.82381837]
[1748875830402,1.10389127,104160.0,104150.0,0.82381837]
[1748875830596,1.46469127,104160.0,104150.0,0.69933837]
[1748875831695,1.46469127,104160.0,104150.0,0.21849837]
[1748875831918,1.46469127,104160.0,104150.0,0.69933837]
[1748875832292,1.58440152,104160.0,104150.0,0.69933837]
[1748875832610,1.58440152,104160.0,104150.0,0.69929837]
[1748875832911,1.58440152,104160.0,104150.0,0.6192]
[1748875832912,1.46469127,104160.0,104150.0,0.6192]
[1748875833092,1.46469127,104160.0,104150.0,0.619]
[1748875833459,1.58440152,104160.0,104150.0,0.6192]
[1748875834372,1.58440152,104160.0,104150.0,0.0698]
[1748875834842,0.684153,104150.0,104140.0,0.00014373]
[1748875835008,1.60419416,104150.0,104140.0,0.48090373]
[1748875835508,1.98419416,104150.0,104140.0,0.48090373]
[1748875835702,1.98419416,104150.0,104140.0,0.48110373]
[1748875836041,1.98619416,104150.0,104140.0,0.48110373]
[1748875836197,1.98819416,104150.0,104140.0,0.48110373]
[1748875836804,1.98819416,104150.0,104140.0,0.48106373]
[1748875837042,1.97859897,104150.0,104140.0,0.00034373]
[1748875837312,2.12828444,104150.0,104140.0,0.48106373]
[1748875837509,2.12828444,104150.0,104140.0,0.00034373]
[1748875838804,0.1919907,104130.0,104120.0,0.1425]
[1748875839005,1.22987036,104130.0,104120.0,0.8830291]
[1748875839197,1.43077036,104130.0,104120.0,0.69102]
[1748875839493,1.63077036,104130.0,104120.0,0.69122]
[1748875839714,1.63077036,104130.0,104120.0,0.069]
[1748875840038,1.63077036,104130.0,104120.0,0.071]
[1748875840288,1.63077036,104130.0,104120.0,0.48388]
[1748875840289,1.99157036,104130.0,104120.0,0.48388]
[1748875840604,2.11157036,104130.0,104120.0,0.004]
[1748875840956,0.6842091,104120.0,104110.0,0.48283315]
[1748875841154,1.40915507,104120.0,104110.0,0.48283315]
[1748875841306,1.97884054,104120.0,104110.0,0.48283315]
[1748875841810,1.97884054,104120.0,104110.0,0.48299315]
[1748875842006,2.05563737,104120.0,104110.0,0.00211315]
[1748875842200,2.05563737,104120.0,104110.0,0.00231315]
[1748875842412,2.05563737,104120.0,104110.0,0.00211315]
[1748875842705,2.05563737,104120.0,104110.0,0.00231315]
[1748875842907,2.05563737,104120.0,104110.0,0.00431315]
[1748875843111,1.9059519,104120.0,104110.0,0.00411315]
[1748875843310,1.9059519,104120.0,104110.0,0.00431315]
[1748875843606,1.4137519,104120.0,104110.0,0.00431315]
[1748875843819,1.4147519,104120.0,104110.0,0.00331315]
[1748875844414,1.18830593,104120.0,104110.0,0.00231315]
[1748875844641,1.4157519,104120.0,104110.0,0.00231315]
[1748875844807,1.4357519,104120.0,104110.0,0.00231315]
[1748875845418,1.55520373,104120.0,104110.0,0.00231315]
[1748875847418,1.58543737,104120.0,104110.0,0.00231315]
[1748875848011,1.4357519,104120.0,104110.0,0.00231315]
[1748875848205,1.55511961,104120.0,104110.0,0.00231315]
[1748875849637,1.42511961,104120.0,104110.0,0.00656269]
[1748875849913,1.12087681,104120.0,104110.0,0.00656269]
[1748875850114,1.34832278,104120.0,104110.0,0.07376269]
[1748875850315,1.34832278,104120.0,104110.0,0.21136269]
[1748875850626,1.34832278,104120.0,104110.0,0.22576269]
[1748875851610,1.42650811,104120.0,104110.0,0.08816269]
[1748875851811,1.42650811,104120.0,104110.0,0.02096269]
[1748875852006,1.42650811,104120.0,104110.0,0.02076269]
[1748875852314,1.42650811,104120.0,104110.0,0.02096269]
[1748875853241,1.53650811,104120.0,104110.0,0.02096269]
[1748875853862,1.53650811,104120.0,104110.0,9e-08]
[1748875854161,0.1920275,104110.0,104100.0,0.005]
[1748875854368,1.32727347,104110.0,104100.0,0.005]
[1748875854630,1.44664118,104110.0,104100.0,0.005]
[1748875855323,1.44664118,104110.0,104100.0,0.0052]
[1748875855324,1.32727347,104110.0,104100.0,0.0052]
[1748875855512,1.44664118,104110.0,104100.0,0.0072]
[1748875856221,1.58664118,104110.0,104100.0,0.0072]
[1748875856524,1.44664118,104110.0,104100.0,0.0072]
[1748875856743,1.57664118,104110.0,104100.0,0.0072]
[1748875856919,1.44664118,104110.0,104100.0,0.0072]
[1748875857120,1.44664118,104110.0,104100.0,0.007]
[1748875857323,1.44664118,104110.0,104100.0,0.0072]
[1748875857929,1.54664118,104110.0,104100.0,0.0072]
[1748875858223,1.54664118,104110.0,104100.0,0.007]
[1748875858725,1.54664118,104110.0,104100.0,0.0072]
[1748875859225,1.54664118,104110.0,104100.0,0.007]
[1748875859419,1.54664118,104110.0,104100.0,0.0072]
[1748875860531,1.44664118,104110.0,104100.0,0.0072]
[1748875861233,1.44664118,104110.0,104100.0,0.145]
[1748875861846,1.44664118,104110.0,104100.0,0.0728]
[1748875862624,1.57664118,104110.0,104100.0,0.0728]
[1748875862828,1.44664118,104110.0,104100.0,0.0728]
[1748875863851,1.54664118,104110.0,104100.0,0.0728]
[1748875864049,1.42727347,104110.0,104100.0,0.0728]
[1748875864231,1.57695894,104110.0,104100.0,0.0728]
[1748875864621,1.57695894,104110.0,104100.0,0.07704954]
[1748875864870,1.61237741,104110.0,104080.0,0.00211376]
[1748875865225,0.1921198,104060.0,104050.0,0.82063152]
[1748875865340,0.1921198,104060.0,104050.0,1.33506781]
[1748875865528,0.5121198,104060.0,104050.0,1.59869652]
[1748875865739,0.5121198,104060.0,104050.0,1.58459153]
[1748875865922,0.5121198,104060.0,104050.0,1.58479153]
[1748875866125,0.5121198,104060.0,104050.0,1.00666867]
[1748875866344,0.5121198,104060.0,104050.0,1.10201414]
[1748875866527,0.5121198,104060.0,104050.0,0.50017414]
[1748875866784,1.10036577,104060.0,104050.0,0.49512051]
[1748875866943,1.16606577,104060.0,104050.0,0.49532051]
[1748875867122,1.16606577,104060.0,104050.0,0.49512051]
[1748875867339,1.16606577,104060.0,104050.0,0.49532051]
[1748875867340,0.9386198,104060.0,104050.0,0.49532051]
[1748875867521,0.9386198,104060.0,104050.0,0.50928967]
[1748875867831,0.9396198,104060.0,104050.0,0.52625689]
[1748875868032,0.9396198,104060.0,104050.0,0.5843887]
[1748875868337,1.23786577,104060.0,104050.0,0.65441401]
[1748875868537,1.23786577,104060.0,104050.0,0.64044256]
[1748875868733,1.23786577,104060.0,104050.0,0.16008256]
[1748875869141,1.23786577,104060.0,104050.0,0.65441701]
[1748875869337,1.43786577,104060.0,104050.0,0.64040256]
[1748875869540,1.43786577,104060.0,104050.0,0.64020256]
[1748875869735,1.43786577,104060.0,104050.0,0.56830256]
[1748875870139,1.55751356,104060.0,104050.0,0.08798256]
[1748875870531,1.55751356,104060.0,104050.0,0.08778256]
[1748875870932,1.55751356,104060.0,104050.0,0.02228256]
[1748875871445,1.55651356,104060.0,104050.0,0.01728256]
[1748875871630,1.55651356,104060.0,104050.0,0.01828256]
[1748875872232,1.43686577,104060.0,104050.0,0.01828256]
[1748875872536,1.55651356,104060.0,104050.0,0.01828256]
[1748875872931,1.55651356,104060.0,104050.0,0.08738256]
[1748875873250,1.32906759,104060.0,104050.0,0.08738256]
[1748875873555,0.52,104060.0,104050.0,0.83144076]
[1748875873907,0.52,104060.0,104050.0,0.84536975]
[1748875874102,0.52,104060.0,104050.0,1.17754476]
[1748875874402,0.52,104060.0,104050.0,1.43881695]
[1748875874543,0.52,104060.0,104050.0,1.42499073]
[1748875874872,0.00014373,104070.0,104060.0,0.1921197]
[1748875875185,0.00014373,104070.0,104060.0,2.5331997]
[1748875875186,0.31014373,104070.0,104060.0,2.5331997]
[1748875875354,0.31014373,104070.0,104060.0,2.8792917]
[1748875875652,0.31014373,104070.0,104060.0,3.10673767]
[1748875875951,0.31014373,104070.0,104060.0,1.3792917]
[1748875876151,0.31214373,104070.0,104060.0,1.3792917]
[1748875876437,0.31214373,104070.0,104060.0,1.39288684]
[1748875876831,0.31214373,104070.0,104060.0,1.62033281]
[1748875877036,0.31214373,104070.0,104060.0,1.65033281]
[1748875877037,0.00214373,104070.0,104060.0,1.65033281]
[1748875877788,0.11961855,104090.0,104080.0,0.1920828]
[1748875877937,0.31168295,104090.0,104080.0,1.2530788]
[1748875878240,0.69168295,104090.0,104080.0,1.4223788]
[1748875878474,0.89168295,104090.0,104080.0,1.230296]
[1748875878760,1.11912892,104090.0,104080.0,1.13422]
[1748875878942,1.24952892,104090.0,104080.0,0.77438]
[1748875879148,1.24952892,104090.0,104080.0,0.74476769]
[1748875879357,1.24952892,104090.0,104080.0,0.74576769]
[1748875879743,1.24952892,104090.0,104080.0,0.74572769]
[1748875879932,1.24952892,104090.0,104080.0,0.74997723]
[1748875880536,1.02208295,104090.0,104080.0,0.74997723]
[1748875880732,1.24952892,104090.0,104080.0,0.74797723]
[1748875880934,1.25052892,104090.0,104080.0,0.74797723]
[1748875881344,1.25152892,104090.0,104080.0,0.74797723]
[1748875881940,1.25352892,104090.0,104080.0,0.74793723]
[1748875882139,1.25352892,104090.0,104080.0,0.74789723]
[1748875882648,1.38688295,104090.0,104080.0,0.74769723]
[1748875882940,1.25352892,104090.0,104080.0,0.74789723]
[1748875883536,1.02608295,104090.0,104080.0,0.74789723]
[1748875883735,1.02608295,104090.0,104080.0,0.93998033]
[1748875883947,1.02608295,104090.0,104080.0,0.74789723]
[1748875884260,1.02608295,104090.0,104080.0,0.93998033]
[1748875884448,1.02608295,104090.0,104080.0,0.74789723]
[1748875884833,1.02308295,104090.0,104080.0,0.74789723]
[1748875885456,1.38388295,104090.0,104080.0,0.74789723]
[1748875885735,1.61332892,104090.0,104080.0,0.12836954]
[1748875886061,1.61432892,104090.0,104080.0,0.60812954]
[1748875886262,1.68381666,104090.0,104080.0,4e-08]
[1748875886473,1.67346445,104090.0,104080.0,0.00020004]
[1748875886639,1.43653074,104090.0,104080.0,4e-08]
[1748875886946,1.66397671,104090.0,104080.0,0.00020004]
[1748875887212,1.37413074,104090.0,104080.0,0.00020004]
[1748875887368,0.95528295,104090.0,104080.0,0.12780004]
[1748875888243,0.95528295,104090.0,104080.0,0.31988314]
[1748875888450,0.76321855,104090.0,104080.0,0.31988314]
[1748875888648,0.95228315,104090.0,104080.0,0.31988314]
[1748875889039,0.95128315,104090.0,104080.0,0.31988314]
[1748875889283,0.95328315,104090.0,104080.0,0.31988314]
[1748875889436,0.95328315,104090.0,104080.0,0.68068314]
[1748875889659,0.95228315,104090.0,104080.0,1.28444314]
[1748875890855,0.76021855,104090.0,104080.0,0.68068314]
[1748875891074,0.76021855,104090.0,104080.0,1.28440314]
[1748875891377,0.76021855,104090.0,104080.0,1.92752511]
[1748875891378,0.63061855,104090.0,104080.0,1.92752511]
[1748875891551,0.32061855,104090.0,104080.0,1.92752511]
[1748875891739,0.69061855,104090.0,104080.0,2.09752511]
[1748875892058,0.63061855,104090.0,104080.0,1.96441022]
[1748875892232,0.63061855,104090.0,104080.0,2.14607099]
[1748875892740,0.62961855,104090.0,104080.0,1.47927099]
[1748875892986,0.62961855,104090.0,104080.0,1.67303914]
[1748875893135,0.62961855,104090.0,104080.0,2.92303914]
[1748875893352,0.63061855,104090.0,104080.0,2.92603914]
[1748875893569,0.32061855,104090.0,104080.0,3.15348511]
[1748875893891,0.00214373,104100.0,104090.0,0.1920646]
[1748875894231,0.18455779,104120.0,104110.0,0.1920277]
[1748875894459,0.00041,104120.0,104110.0,1.1564677]
[1748875894803,0.44341,104120.0,104110.0,1.2871677]
[1748875895073,0.50931,104120.0,104110.0,0.8074477]
[1748875895258,0.7013193,104120.0,104110.0,0.6835277]
[1748875895458,0.7033193,104120.0,104110.0,1.2870877]
[1748875895746,0.9704193,104120.0,104110.0,1.2872877]
[1748875896053,0.9704193,104120.0,104110.0,0.61562]
[1748875896184,0.9704193,104120.0,104110.0,1.2870877]
[1748875896345,0.9704193,104120.0,104110.0,1.2872877]
[1748875896543,0.9724193,104120.0,104110.0,1.2872877]
[1748875896746,0.9724193,104120.0,104110.0,1.2872477]
[1748875897254,0.78041,104120.0,104110.0,1.96350812]
[1748875897574,0.77941,104120.0,104110.0,2.02350812]
[1748875897805,0.20141,104120.0,104110.0,2.05955612]
[1748875897975,0.00214373,104130.0,104120.0,0.1920093]
[1748875898252,0.00214373,104130.0,104120.0,1.04129527]
[1748875898381,0.00214373,104130.0,104120.0,1.20129527]
[1748875898382,0.35214373,104130.0,104120.0,1.20129527]
[1748875898718,0.002,104160.0,104150.0,0.1919542]
[1748875898835,0.002,104160.0,104150.0,1.50914017]
[1748875898985,0.1336,104160.0,104150.0,1.50914017]
[1748875899170,0.1336,104160.0,104150.0,1.2816942]
[1748875899347,0.4436,104160.0,104150.0,1.2816942]
[1748875899852,0.6436,104160.0,104150.0,0.6782542]
[1748875900047,0.6436,104160.0,104150.0,1.2816142]
[1748875900272,0.6436,104160.0,104150.0,0.7953142]
[1748875900273,0.8983366,104160.0,104150.0,0.7953142]
[1748875900554,0.9013366,104160.0,104150.0,0.7965142]
[1748875900746,0.9013366,104160.0,104150.0,0.60444]
[1748875900747,0.9043366,104160.0,104150.0,0.60444]
[1748875900940,0.9043366,104160.0,104150.0,0.7963951]
[1748875901743,1.49258257,104160.0,104150.0,0.0012]
[1748875901950,1.49258257,104160.0,104150.0,0.7959152]
[1748875902142,1.49258257,104160.0,104150.0,0.7957152]
[1748875902336,1.49258257,104160.0,104150.0,0.7959152]
[1748875902647,0.9043366,104160.0,104150.0,0.7959152]
[1748875902860,0.9043367,104160.0,104150.0,0.7959152]
[1748875904754,0.9043367,104160.0,104150.0,0.7957952]
[1748875904956,0.9013367,104160.0,104150.0,0.7957952]
[1748875905552,1.2621367,104160.0,104150.0,0.7957952]
[1748875905753,1.2621367,104160.0,104150.0,1.38400117]
[1748875905754,0.7094,104160.0,104150.0,1.38400117]
[1748875905950,0.7094,104160.0,104150.0,1.44620117]
[1748875906166,0.5765,104160.0,104150.0,1.62641317]
[1748875906354,0.5765,104160.0,104150.0,1.02381317]
[1748875906565,0.2,104160.0,104150.0,1.60637317]
[1748875906769,0.2,104160.0,104150.0,0.6803552]
[1748875906770,0.391937,104160.0,104150.0,0.6803552]
[1748875907057,1.48068297,104160.0,104150.0,0.7944752]
[1748875907262,1.48068297,104160.0,104150.0,0.7946752]
[1748875907263,1.54258297,104160.0,104150.0,0.7946752]
[1748875907469,1.54258297,104160.0,104150.0,0.1236]
[1748875907645,1.18178297,104160.0,104150.0,0.1919557]
[1748875907843,1.315137,104160.0,104150.0,0.7946357]
[1748875908058,0.954337,104160.0,104150.0,0.7946357]
[1748875908248,1.315137,104160.0,104150.0,0.7946357]
[1748875908468,1.1232,104160.0,104150.0,0.7946357]
[1748875908672,1.1232,104160.0,104150.0,1.60288167]
[1748875908673,0.7624,104160.0,104150.0,1.60288167]
[1748875908882,0.7624,104160.0,104150.0,1.50778167]
[1748875910446,0.7624,104160.0,104150.0,1.53203121]
[1748875911057,0.7624,104160.0,104150.0,1.51171121]
[1748875911276,0.7624,104160.0,104150.0,1.51191121]
[1748875911801,0.36094373,104170.0,104150.0,1.51191121]
[1748875911802,0.00014373,104170.0,104160.0,0.1919374]
[1748875912052,0.32,104170.0,104160.0,0.93058337]
[1748875912247,0.32,104170.0,104160.0,0.96918337]
[1748875912564,0.32,104170.0,104160.0,1.06518337]
[1748875913043,0.32,104170.0,104160.0,1.54406337]
[1748875913245,0.322,104170.0,104160.0,1.54406337]
[1748875913969,0.27598432,104170.0,104160.0,1.54406337]
[1748875914157,0.23826732,104170.0,104160.0,1.54406337]
[1748875914451,0.20055032,104170.0,104160.0,1.54406337]
[1748875915055,0.334,104170.0,104160.0,1.54406337]
[1748875915378,0.28598432,104170.0,104160.0,1.54406337]
[1748875915557,0.23796864,104170.0,104160.0,1.54406337]
[1748875915955,0.23796864,104170.0,104160.0,1.66730337]
[1748875916155,0.18995296,104170.0,104160.0,1.66730337]
[1748875916463,0.12814373,104180.0,104170.0,0.1919195]
[1748875916655,0.48814373,104180.0,104170.0,0.6817195]
[1748875916949,1.1243678,104180.0,104160.0,0.00014373]
[1748875917152,0.58824597,104170.0,104160.0,0.19208173]
[1748875917348,0.58824597,104170.0,104160.0,0.67096173]
[1748875917449,0.8927196,104170.0,104160.0,0.67096173]
[1748875917854,0.8927196,104170.0,104160.0,0.47902373]
[1748875918052,0.8927196,104170.0,104160.0,0.67096173]
[1748875918556,0.8937196,104170.0,104160.0,0.47902373]
[1748875918759,0.8937196,104170.0,104160.0,0.67096173]
[1748875919263,0.8947196,104170.0,104160.0,0.67088173]
[1748875919664,0.8947196,104170.0,104160.0,0.00034373]
[1748875919958,0.8947196,104170.0,104160.0,0.67088263]
[1748875920163,0.8947196,104170.0,104160.0,0.47894373]
[1748875920395,1.21216557,104170.0,104160.0,0.00034373]
[1748875920586,1.21216557,104170.0,104160.0,0.47870373]
[1748875920765,1.12216557,104170.0,104160.0,0.47890373]
[1748875921654,1.12216557,104170.0,104160.0,0.00034373]
[1748875922161,1.26216557,104170.0,104160.0,0.00034373]
[1748875922367,1.12216557,104170.0,104160.0,0.47886373]
[1748875923059,1.12216557,104170.0,104160.0,0.47866373]
[1748875923060,1.23216557,104170.0,104160.0,0.47866373]
[1748875923363,1.23216557,104170.0,104160.0,0.47886373]
[1748875923751,1.23216557,104170.0,104160.0,0.67080263]
[1748875923972,1.23216557,104170.0,104160.0,0.19228263]
[1748875924191,1.12216557,104170.0,104160.0,0.67076263]
[1748875925068,1.12216557,104170.0,104160.0,0.19228263]
[1748875925365,1.12216557,104170.0,104160.0,0.67072263]
[1748875925663,1.12216557,104170.0,104160.0,0.67497217]
[1748875926163,1.2411657,104170.0,104160.0,0.67497217]
[1748875926861,1.12216557,104170.0,104160.0,0.67497217]
[1748875927171,1.2411657,104170.0,104160.0,0.67497217]
[1748875927469,1.01371973,104170.0,104160.0,0.67497217]
[1748875927821,1.01372013,104170.0,104160.0,0.67497217]
[1748875928200,0.342,104170.0,104160.0,1.03577217]
[1748875928612,0.342,104170.0,104160.0,0.74127217]
[1748875928620,0.342,104170.0,104160.0,0.96871814]
[1748875929338,0.342,104170.0,104160.0,0.86455217]
[1748875929470,0.542,104170.0,104160.0,0.26283217]
[1748875929570,0.542,104170.0,104160.0,0.86455217]
[1748875930880,0.76944597,104170.0,104160.0,0.12799327]
[1748875931062,1.32216667,104170.0,104160.0,0.60603327]
[1748875931558,1.32216667,104170.0,104160.0,0.60623327]
[1748875931766,0.542,104170.0,104160.0,1.15897237]
[1748875932064,0.542,104170.0,104160.0,0.79817237]
[1748875932262,0.542,104170.0,104160.0,0.86587237]
[1748875934162,0.6063,104170.0,104160.0,0.86587237]
[1748875934368,0.6666,104170.0,104160.0,0.86587237]
[1748875934961,0.6666,104170.0,104160.0,0.38763237]
[1748875935177,0.6666,104170.0,104160.0,0.86575237]
[1748875935361,0.6666,104170.0,104160.0,0.90221825]
[1748875935573,1.0274,104170.0,104160.0,0.90221825]
[1748875935749,1.0274,104170.0,104160.0,0.01899327]
[1748875935950,0.6666,104170.0,104160.0,0.68901257]
[1748875936279,0.6666,104170.0,104160.0,0.49707327]
[1748875936280,1.2193209,104170.0,104160.0,0.49707327]
[1748875936663,1.2193209,104170.0,104160.0,0.68901257]
[1748875936854,1.2193209,104170.0,104160.0,0.49707327]
[1748875937073,1.0274,104170.0,104160.0,0.21093257]
[1748875937262,1.0274,104170.0,104160.0,0.68897257]
[1748875937763,0.6666,104170.0,104160.0,0.68897257]
[1748875937956,1.0274,104170.0,104160.0,0.68897257]
[1748875938310,0.6666,104170.0,104160.0,0.68897257]
[1748875938617,0.6666,104170.0,104160.0,1.04977257]
[1748875938771,0.542,104170.0,104160.0,1.34351854]
[1748875938993,0.542,104170.0,104160.0,1.44108442]
[1748875939881,0.6697,104170.0,104160.0,1.44108442]
[1748875940869,0.6697,104170.0,104160.0,1.21363845]
[1748875941564,0.6697,104170.0,104160.0,0.73559845]
[1748875941862,0.6697,104170.0,104160.0,0.31369845]
[1748875942088,1.44986687,104170.0,104160.0,0.65601915]
[1748875942371,1.44986687,104170.0,104160.0,0.37027845]
[1748875942573,1.2224209,104170.0,104160.0,0.81169327]
[1748875942779,1.44986687,104170.0,104160.0,0.61975327]
[1748875943165,1.44986687,104170.0,104160.0,0.14187327]
[1748875943166,1.568867,104170.0,104160.0,0.14187327]
[1748875943396,1.568867,104170.0,104160.0,0.61971327]
[1748875943563,1.568867,104170.0,104160.0,0.61951327]
[1748875943761,1.568867,104170.0,104160.0,0.01899327]
[1748875943977,1.368867,104170.0,104160.0,0.49679327]
[1748875944472,1.34342103,104170.0,104160.0,0.49679327]
[1748875944762,1.570867,104170.0,104160.0,0.01899327]
[1748875944971,1.570867,104170.0,104160.0,0.49679327]
[1748875945177,1.670867,104170.0,104160.0,0.53325915]
[1748875945569,1.570867,104170.0,104160.0,0.53321915]
[1748875945767,1.690867,104170.0,104160.0,0.05545915]
[1748875945978,1.72208313,104170.0,104160.0,0.01899327]
[1748875946164,1.72208313,104170.0,104160.0,0.49655327]
[1748875946392,1.72208313,104170.0,104160.0,0.01899327]
[1748875946670,1.72208313,104170.0,104160.0,0.49655327]
[1748875946858,1.72208313,104170.0,104160.0,0.49671327]
[1748875947256,1.57286687,104170.0,104160.0,0.01899327]
[1748875947470,1.72262116,104170.0,104160.0,0.49671327]
[1748875947786,1.72262116,104170.0,104160.0,0.01899327]
[1748875947975,1.72262116,104170.0,104160.0,0.49671327]
[1748875948467,1.72259786,104170.0,104160.0,0.49667327]
[1748875948673,1.72259786,104170.0,104160.0,0.68861327]
[1748875948864,1.72259786,104170.0,104160.0,0.49671327]
[1748875949666,1.72259786,104170.0,104160.0,0.49667327]
[1748875949868,1.81859786,104170.0,104160.0,0.01899327]
[1748875950063,1.81859786,104170.0,104160.0,0.01879327]
[1748875950482,1.59115189,104170.0,104160.0,0.01879327]
[1748875950677,1.81859786,104170.0,104160.0,0.01879327]
[1748875950878,1.81859786,104170.0,104160.0,0.01899327]
[1748875955884,0.1919588,104150.0,104140.0,0.03863127]
[1748875956078,0.1919588,104150.0,104140.0,0.47963254]
[1748875956079,1.26990077,104150.0,104140.0,0.47963254]
[1748875956386,1.39580077,104150.0,104140.0,0.47983254]
[1748875956776,1.50580077,104150.0,104140.0,0.00231254]
[1748875956968,1.75660077,104150.0,104140.0,0.00331254]
[1748875957169,2.12910477,104150.0,104140.0,0.48079254]
[1748875957372,2.34878689,104150.0,104140.0,0.00331254]
[1748875957558,2.22910477,104150.0,104140.0,0.00331254]
[1748875957760,2.22910477,104150.0,104140.0,0.48079254]
[1748875957996,2.22910477,104150.0,104140.0,0.48059254]
[1748875958195,2.22910477,104150.0,104140.0,0.48179254]
[1748875958578,2.22910477,104150.0,104140.0,0.48159254]
[1748875958877,2.22910477,104150.0,104140.0,0.48179254]
[1748875959087,2.23110477,104150.0,104140.0,0.48079254]
[1748875959377,2.43110477,104150.0,104140.0,0.48079254]
[1748875959578,2.55372064,104150.0,104140.0,0.00231254]
[1748875959980,1.95169694,104150.0,104140.0,0.00231254]
[1748875960177,2.09152477,104150.0,104140.0,0.00211254]
[1748875960482,2.09152477,104150.0,104140.0,0.00231254]
[1748875960483,2.16937543,104150.0,104140.0,0.00231254]
[1748875961674,1.94192946,104150.0,104140.0,0.00231254]
[1748875962006,2.16937543,104150.0,104140.0,0.00231254]
[1748875963377,2.01975543,104150.0,104140.0,0.00231254]
[1748875963893,2.16937543,104150.0,104140.0,0.00231254]
[1748875965379,2.26539544,104150.0,104140.0,0.0002]
[1748875965712,0.192015,104120.0,104110.0,0.01197065]
[1748875965986,1.78057652,104120.0,104110.0,0.01197065]
[1748875966166,1.96317652,104120.0,104110.0,0.01197065]
[1748875966366,1.96317652,104120.0,104110.0,0.48941065]
[1748875967067,1.96317652,104120.0,104110.0,0.01217065]
[1748875967374,1.96317652,104120.0,104110.0,0.49141065]
[1748875967578,1.73573055,104120.0,104110.0,0.49141065]
[1748875967785,1.96317652,104120.0,104110.0,0.49441065]
[1748875968486,1.96817652,104120.0,104110.0,0.48941065]
[1748875968968,1.96817652,104120.0,104110.0,0.48937065]
[1748875969519,1.96817652,104120.0,104110.0,0.00656269]
[1748875969700,0.1920335,104110.0,104100.0,0.00014373]
[1748875969898,0.90067947,104110.0,104100.0,0.00014373]
[1748875970079,1.48007016,104110.0,104100.0,0.00014373]
[1748875970290,1.48007016,104110.0,104100.0,0.00034373]
[1748875970593,1.25262419,104110.0,104100.0,0.00034373]
[1748875970784,1.48007016,104110.0,104100.0,0.00034373]
[1748875970975,1.48107016,104110.0,104100.0,0.00034373]
[1748875971189,1.48207016,104110.0,104100.0,0.00034373]
[1748875971491,1.5120739,104110.0,104100.0,0.00034373]
[1748875972579,1.36267947,104110.0,104100.0,0.00014373]